bitfinex-derivatives/quotes_BTCF0:USTF0_20260221
["timestamp","ask_amount","ask_price","bid_price","bid_amount"]
[1771684467297,0.72357873,68684.0,68638.0,0.53016468]
[1771684467298,0.86403998,68669.0,68638.0,0.53016468]
[1771684467595,0.86403998,68669.0,68641.0,0.53019247]
[1771684467792,0.86403998,68669.0,68641.0,0.54476447]
[1771684467999,0.86403998,68677.0,68646.0,0.53019247]
[1771684468805,0.19882384,68660.0,68634.0,0.53151691]
[1771684469095,0.19882384,68660.0,68633.0,0.014574]
[1771684469096,1.06286382,68670.0,68636.0,0.53151691]
[1771684469300,1.06286382,68670.0,68640.0,0.54502851]
[1771684469505,1.06286382,68670.0,68642.0,0.53048201]
[1771684469689,1.0737751,68680.0,68646.0,0.53048201]
[1771684470798,0.01091128,68680.0,68657.0,0.47915299]
[1771684471002,0.01091128,68680.0,68642.0,0.014572]
[1771684471003,1.0737751,68680.0,68645.0,0.49372399]
[1771684471200,0.01091128,68680.0,68657.0,0.47915299]
[1771684471894,1.0737751,68680.0,68657.0,0.47915299]
[1771684472196,1.0737751,68680.0,68650.0,0.47816996]
[1771684472396,0.20973512,68680.0,68652.0,0.4771023]
[1771684472700,0.19882384,68670.0,68640.0,0.47787113]
[1771684472888,0.19882384,68670.0,68642.0,0.49244313]
[1771684473087,0.86403998,68674.0,68650.0,0.47787113]
[1771684473501,0.86403998,68674.0,68657.0,0.001]
[1771684473704,0.01091128,68680.0,68657.0,0.47788757]
[1771684474202,0.01091128,68680.0,68657.0,0.47688757]
[1771684474396,0.01091128,68680.0,68657.0,0.46810357]
[1771684474700,0.87495126,68680.0,68657.0,0.46810357]
[1771684475099,0.01091128,68680.0,68657.0,0.48267257]
[1771684475299,0.01091128,68680.0,68657.0,0.46810357]
[1771684476907,0.01091128,68680.0,68657.0,0.46910357]
[1771684477105,0.20973512,68680.0,68657.0,0.46910357]
[1771684477708,0.01091128,68680.0,68660.0,0.43992771]
[1771684478299,1.00474484,68670.0,68643.0,0.43884271]
[1771684478497,1.00474484,68660.0,68629.0,0.4307811]
[1771684478699,1.00474484,68660.0,68628.0,0.014575]
[1771684478700,0.805921,68660.0,68632.0,0.4453551]
[1771684478892,0.805921,68660.0,68637.0,0.4307811]
[1771684479100,0.73462882,68678.0,68637.0,0.4307811]
[1771684479101,0.805921,68677.0,68639.0,0.4453541]
[1771684479310,0.805921,68677.0,68637.0,0.014573]
[1771684479311,0.805921,68677.0,68648.0,0.014571]
[1771684479498,0.20973512,68680.0,68657.0,0.43092247]
[1771684479996,0.20973512,68680.0,68651.0,0.01457]
[1771684480199,1.01565612,68680.0,68649.0,0.42992247]
[1771684480405,1.01565612,68680.0,68650.0,0.01457]
[1771684480708,1.01565612,68680.0,68651.0,0.4295516]
[1771684481104,0.19882384,68670.0,68642.0,0.014572]
[1771684481310,0.19882384,68670.0,68649.0,0.001]
[1771684481311,1.00474484,68670.0,68649.0,0.001]
[1771684482106,1.00474484,68670.0,68637.0,0.014573]
[1771684482107,0.19882384,68660.0,68633.0,0.014574]
[1771684482494,0.19882384,68660.0,68632.0,0.42859142]
[1771684482696,0.19882384,68660.0,68632.0,0.44316542]
[1771684483005,0.805921,68663.0,68632.0,0.44316542]
[1771684483304,0.19882384,68660.0,68633.0,0.43210476]
[1771684483508,1.00474484,68660.0,68633.0,0.41753076]
[1771684483805,1.00474484,68660.0,68611.0,0.17247727]
[1771684483806,0.01091128,68680.0,68644.0,0.41657411]
[1771684483998,0.805921,68679.0,68647.0,0.41657411]
[1771684484197,0.19882384,68670.0,68647.0,0.41657411]
[1771684484400,0.19882384,68670.0,68638.0,0.41553218]
[1771684484604,0.19882384,68670.0,68639.0,0.014573]
[1771684484805,1.01565612,68680.0,68646.0,0.41733537]
[1771684485099,0.805921,68679.0,68646.0,0.41733537]
[1771684485305,0.19882384,68670.0,68646.0,0.41733537]
[1771684486001,0.01091128,68680.0,68635.0,0.41643007]
[1771684486002,0.19882384,68660.0,68635.0,0.41643007]
[1771684486205,0.805921,68669.0,68635.0,0.43100407]
[1771684486411,0.805921,68669.0,68636.0,0.014573]
[1771684486599,0.805921,68669.0,68637.0,0.4254312]
[1771684487901,0.805921,68659.0,68629.0,0.014575]
[1771684488304,1.00474484,68640.0,68609.0,0.42340865]
[1771684489403,1.00474484,68630.0,68604.0,0.00012777]
[1771684489711,1.00474484,68630.0,68629.0,0.001]
[1771684489900,0.805921,68652.0,68612.0,0.42261395]
[1771684490207,0.19882384,68640.0,68612.0,0.42261395]
[1771684490804,0.805921,68649.0,68614.0,0.43533708]
[1771684491203,0.805921,68648.0,68614.0,0.43533708]
[1771684491510,0.19882384,68640.0,68614.0,0.43533708]
[1771684491904,0.805921,68648.0,68614.0,0.43533708]
[1771684492306,0.19882384,68640.0,68614.0,0.43533708]
[1771684494208,0.19882384,68640.0,68606.0,0.01458]
[1771684494209,0.19882384,68630.0,68606.0,0.41776858]
[1771684494413,1.00474484,68630.0,68606.0,0.41776858]
[1771684495007,1.00474484,68620.0,68589.0,0.41479473]
[1771684495207,1.00474484,68620.0,68584.0,0.014584]
[1771684495208,0.805921,68620.0,68584.0,0.014584]
[1771684495409,0.19882384,68610.0,68585.0,0.41369689]
[1771684495602,0.46656,68629.0,68585.0,0.41369689]
[1771684495603,0.19882384,68600.0,68585.0,0.41369689]
[1771684495804,0.19882384,68610.0,68585.0,0.41369689]
[1771684496002,0.00015412,68609.0,68585.0,0.41369689]
[1771684496314,0.19882384,68600.0,68581.0,0.00072906]
[1771684496503,0.00014005,68599.0,68581.0,0.00072906]
[1771684498005,0.00014005,68599.0,68576.0,0.31455225]
[1771684498910,0.00114005,68599.0,68576.0,0.31455225]
[1771684499413,0.80706105,68599.0,68567.0,0.33279206]
[1771684499603,0.19882384,68590.0,68567.0,0.33279206]
[1771684499806,0.80606105,68599.0,68567.0,0.33279206]
[1771684500003,0.80706105,68599.0,68567.0,0.31820406]
[1771684500407,0.19882384,68590.0,68567.0,0.31820406]
[1771684500612,0.19882384,68580.0,68557.0,0.01459]
[1771684500906,0.00014404,68579.0,68556.0,0.31078336]
[1771684501903,0.00014404,68579.0,68555.0,0.00011761]
[1771684501904,0.19882384,68570.0,68555.0,0.00011761]
[1771684502104,0.805921,68578.0,68555.0,0.00011761]
[1771684502310,0.19882384,68570.0,68555.0,0.00011761]
[1771684502507,0.00015412,68569.0,68555.0,0.00011761]
[1771684502916,0.00015412,68569.0,68547.0,0.32438627]
[1771684503113,0.00015412,68569.0,68547.0,0.30979427]
[1771684503312,0.805921,68578.0,68551.0,0.32401987]
[1771684503615,0.805921,68578.0,68551.0,0.30942887]
[1771684503819,0.19882384,68570.0,68551.0,0.30942887]
[1771684504415,0.00011761,68569.0,68551.0,0.30942887]
[1771684505718,0.00011761,68569.0,68542.0,0.31291277]
[1771684505719,0.80603861,68569.0,68542.0,0.31291277]
[1771684505921,0.19882384,68560.0,68542.0,0.31291277]
[1771684506119,0.19882384,68560.0,68535.0,0.014595]
[1771684506311,0.80603861,68559.0,68533.0,0.31291277]
[1771684506516,0.80603861,68559.0,68535.0,0.014595]
[1771684506716,0.80603861,68559.0,68536.0,0.014595]
[1771684507011,0.80603861,68559.0,68534.0,0.014595]
[1771684507219,0.80603861,68559.0,68529.0,0.31391194]
[1771684507405,0.80603861,68559.0,68530.0,0.014596]
[1771684507606,0.80603861,68559.0,68534.0,0.014595]
[1771684508221,0.80603861,68559.0,68535.0,0.014595]
[1771684509917,0.80603861,68559.0,68534.0,0.31198907]
[1771684510117,0.80603861,68559.0,68535.0,0.014595]
[1771684510723,0.80603861,68559.0,68534.0,0.31198907]
[1771684510917,0.80603861,68559.0,68541.0,0.32756183]
[1771684510918,0.00011761,68559.0,68541.0,0.32756183]
[1771684511223,0.00011761,68559.0,68541.0,0.31296783]
[1771684512121,0.85021762,68550.0,68510.0,0.17247727]
[1771684512329,1.04904146,68540.0,68512.0,0.31276178]
[1771684512520,0.85021762,68538.0,68512.0,0.31276178]
[1771684513722,0.19882384,68532.0,68512.0,0.31276178]
[1771684514029,0.85021762,68538.0,68512.0,0.32736178]
[1771684514618,0.014597,68528.0,68512.0,0.32736178]
[1771684514917,0.014597,68527.0,68510.0,0.0146]
[1771684515125,0.014597,68527.0,68512.0,0.0146]
[1771684515426,0.014595,68534.0,68520.0,0.014598]
[1771684515619,0.014595,68536.0,68520.0,0.014598]
[1771684515815,0.85021762,68559.0,68523.0,0.30385334]
[1771684516017,0.001,68527.0,68525.0,0.30385334]
[1771684516227,0.85021762,68551.0,68524.0,0.014597]
[1771684516521,0.06823223,68560.0,68523.0,0.014597]
[1771684516522,1.31729762,68548.0,68523.0,0.014597]
[1771684516714,1.31729762,68548.0,68524.0,0.014597]
[1771684516920,0.00018423,68547.0,68524.0,0.014597]
[1771684517224,0.00018423,68547.0,68529.0,0.014596]
[1771684518026,0.00018423,68547.0,68530.0,0.014596]
[1771684518227,0.00118423,68547.0,68530.0,0.014596]
[1771684519215,0.00018423,68547.0,68530.0,0.014596]
[1771684519420,0.00118423,68547.0,68530.0,0.014596]
[1771684520237,0.00118423,68547.0,68527.0,0.014597]
[1771684520422,0.85021762,68563.0,68539.0,0.014594]
[1771684520725,0.85021762,68563.0,68541.0,0.014593]
[1771684520926,0.85021762,68563.0,68542.0,0.014593]
[1771684521522,0.85021762,68563.0,68544.0,0.014593]
[1771684522027,0.85021762,68563.0,68546.0,0.014592]
[1771684522225,0.85021762,68563.0,68547.0,0.014592]
[1771684522428,0.06823223,68570.0,68548.0,0.014592]
[1771684522734,0.85021762,68572.0,68548.0,0.014592]
[1771684523319,0.85021762,68572.0,68545.0,0.014593]
[1771684523726,0.85021762,68572.0,68550.0,0.014592]
[1771684523935,0.85021762,68572.0,68549.0,0.014592]
[1771684524432,0.85021762,68572.0,68548.0,0.014592]
[1771684524629,0.85021762,68572.0,68547.0,0.014592]
[1771684524837,0.85021762,68572.0,68549.0,0.014592]
[1771684525529,0.85021762,68572.0,68550.0,0.014592]
[1771684526529,0.85021762,68572.0,68551.0,0.014592]
[1771684526822,0.001,68566.0,68553.0,0.014591]
[1771684527024,0.001,68566.0,68554.0,0.014591]
[1771684527433,0.85021762,68572.0,68554.0,0.014591]
[1771684528123,0.001,68566.0,68554.0,0.014591]
[1771684528440,0.001,68566.0,68553.0,0.014591]
[1771684529534,0.001,68572.0,68556.0,0.01459]
[1771684530238,0.001,68566.0,68556.0,0.01459]
[1771684530638,0.85021762,68580.0,68556.0,0.01459]
[1771684531835,0.85021762,68580.0,68556.0,0.01559]
[1771684532633,0.85021762,68580.0,68557.0,0.01459]
[1771684532835,0.85021762,68580.0,68559.0,0.01459]
[1771684533232,0.85021762,68580.0,68562.0,0.014589]
[1771684533537,0.85021762,68580.0,68560.0,0.01459]
[1771684534239,0.85021762,68580.0,68559.0,0.01459]
[1771684534736,0.85021762,68580.0,68561.0,0.014589]
[1771684534935,0.85021762,68580.0,68560.0,0.01459]
[1771684535436,0.85021762,68580.0,68561.0,0.014589]
[1771684535629,0.85021762,68580.0,68562.0,0.014589]
[1771684535935,0.85021762,68580.0,68557.0,0.01459]
[1771684536237,0.85021762,68580.0,68558.0,0.01459]
[1771684536430,0.85021762,68580.0,68559.0,0.01459]
[1771684537229,0.85021762,68580.0,68558.0,0.01459]
[1771684537430,0.85021762,68580.0,68559.0,0.01459]
[1771684537633,0.85021762,68580.0,68557.0,0.001]
[1771684538134,0.46716,68587.0,68556.0,0.26263543]
[1771684538334,0.46716,68587.0,68566.0,0.2474545]
[1771684538540,0.01476,68586.0,68578.0,0.2620405]
[1771684538730,0.01476,68585.0,68582.0,0.014585]
[1771684538926,0.01476,68584.0,68581.0,0.014585]
[1771684539130,0.81222448,68603.0,68580.0,0.014585]
[1771684539338,0.829707,68601.0,68579.0,0.014586]
[1771684539538,0.829707,68599.0,68580.0,0.014585]
[1771684539734,0.001,68586.0,68580.0,0.014585]
[1771684539934,0.01476,68585.0,68580.0,0.014585]
[1771684540140,0.01476,68584.0,68583.0,0.014585]
[1771684540339,0.83188175,68598.0,68583.0,0.014585]
[1771684540636,0.01476,68597.0,68583.0,0.014585]
[1771684540839,0.01476,68597.0,68584.0,0.014585]
[1771684541038,1.16772,68616.0,68584.0,0.014585]
[1771684541039,0.81222448,68614.0,68588.0,0.014583]
[1771684541241,0.81222448,68612.0,68588.0,0.014583]
[1771684541441,0.81222448,68612.0,68589.0,0.014583]
[1771684541645,0.06823223,68600.0,68575.0,0.014586]
[1771684541842,0.81222448,68599.0,68581.0,0.014585]
[1771684542137,0.81222448,68599.0,68575.0,0.014586]
[1771684542138,0.81222448,68599.0,68582.0,0.014585]
[1771684542342,0.81222448,68599.0,68583.0,0.014585]
[1771684542838,0.81222448,68599.0,68572.0,0.014587]
[1771684542839,0.81222448,68599.0,68580.0,0.014585]
[1771684543744,0.81222448,68599.0,68573.0,0.07104014]
[1771684543745,0.81222448,68599.0,68579.0,0.014586]
[1771684543938,0.81222448,68599.0,68580.0,0.014585]
[1771684544736,0.81222448,68599.0,68583.0,0.014585]
[1771684545945,0.81222448,68599.0,68581.0,0.014585]
[1771684546137,0.81222448,68599.0,68582.0,0.014585]
[1771684546637,0.81222448,68599.0,68575.0,0.014586]
[1771684546850,0.81222448,68599.0,68574.0,0.029173]
[1771684547043,0.81222448,68599.0,68571.0,0.014587]
[1771684547544,0.81222448,68599.0,68568.0,0.014588]
[1771684547743,0.81222448,68589.0,68562.0,0.014589]
[1771684547945,0.06823223,68600.0,68548.0,0.1211]
[1771684547946,0.81222448,68587.0,68548.0,0.1211]
[1771684548241,0.81222448,68587.0,68560.0,0.01459]
[1771684548440,0.81222448,68587.0,68557.0,0.01459]
[1771684548739,0.81222448,68587.0,68555.0,0.014591]
[1771684548740,0.81222448,68587.0,68574.0,0.001]
[1771684548947,0.81222448,68587.0,68560.0,0.01459]
[1771684549150,0.81222448,68587.0,68559.0,0.01459]
[1771684549740,0.81222448,68587.0,68561.0,0.014589]
[1771684549941,0.81222448,68587.0,68560.0,0.01459]
[1771684550142,0.81222448,68569.0,68549.0,0.014592]
[1771684550339,0.81222448,68569.0,68551.0,0.014591]
[1771684550635,0.81222448,68569.0,68550.0,0.014592]
[1771684551040,0.81222448,68569.0,68563.0,0.00088]
[1771684551240,0.81222448,68569.0,68541.0,0.17247801]
[1771684551541,0.81222448,68569.0,68544.0,0.014593]
[1771684551743,0.81222448,68550.0,68528.0,0.014596]
[1771684551935,0.81222448,68550.0,68526.0,0.014597]
[1771684552942,0.81222448,68550.0,68527.0,0.014597]
[1771684553337,0.81222448,68558.0,68526.0,0.3131445]
[1771684553644,0.24813393,68579.0,68542.0,0.014593]
[1771684553645,0.014591,68554.0,68542.0,0.014593]
[1771684553947,0.01459,68557.0,68542.0,0.014593]
[1771684553948,0.014591,68555.0,68542.0,0.014593]
[1771684554538,0.014591,68555.0,68541.0,0.014594]
[1771684554539,0.014591,68555.0,68543.0,0.014593]
[1771684555646,0.88045671,68560.0,68535.0,0.014595]
[1771684555850,0.88045671,68560.0,68542.0,0.014593]
[1771684555851,0.81222448,68560.0,68542.0,0.014593]
[1771684556248,0.81222448,68560.0,68541.0,0.014594]
[1771684557150,0.81222448,68560.0,68536.0,0.014595]
[1771684557458,0.81222448,68560.0,68538.0,0.014594]
[1771684557749,0.81222448,68560.0,68539.0,0.014594]
[1771684558543,0.81222448,68560.0,68540.0,0.014594]
[1771684558743,0.81222448,68560.0,68541.0,0.014594]
[1771684559039,0.81222448,68560.0,68540.0,0.014594]
[1771684559748,0.81222448,68560.0,68538.0,0.014594]
[1771684560152,0.81222448,68560.0,68537.0,0.014594]
[1771684560639,0.81222448,68560.0,68532.0,0.00017493]
[1771684560844,0.88045671,68560.0,68532.0,0.00017493]
[1771684561440,0.014594,68541.0,68532.0,0.00017493]
[1771684561640,0.014594,68540.0,68532.0,0.00017493]
[1771684561839,0.81222448,68547.0,68532.0,0.00017493]
[1771684562047,0.81222448,68544.0,68532.0,0.00017493]
[1771684562250,0.014595,68536.0,68532.0,0.00017493]
[1771684562448,0.014595,68536.0,68532.0,0.00117493]
[1771684562838,0.014594,68541.0,68525.0,0.014597]
[1771684562839,0.014595,68535.0,68525.0,0.014597]
[1771684563050,0.014597,68528.0,68518.0,0.014598]
[1771684563257,0.014596,68532.0,68523.0,0.014597]
[1771684563443,0.81222448,68535.0,68517.0,0.014599]
[1771684563754,0.014597,68527.0,68517.0,0.014599]
[1771684563953,0.014597,68525.0,68517.0,0.014599]
[1771684564340,0.014598,68523.0,68516.0,0.014599]
[1771684564540,0.014598,68522.0,68516.0,0.014599]
[1771684564847,0.014597,68527.0,68517.0,0.014599]
[1771684565045,0.81222448,68533.0,68512.0,0.0146]
[1771684565348,0.002,68536.0,68480.0,0.27292892]
[1771684565349,0.014597,68528.0,68515.0,0.014599]
[1771684565541,0.014597,68524.0,68512.0,0.0146]
[1771684565740,0.087585,68528.0,68513.0,0.0146]
[1771684565940,0.072988,68527.0,68513.0,0.0146]
[1771684566141,0.072988,68527.0,68514.0,0.014599]
[1771684566348,0.014597,68528.0,68514.0,0.014599]
[1771684566349,0.072988,68526.0,68514.0,0.014599]
[1771684566649,0.072988,68527.0,68514.0,0.014599]
[1771684567044,0.072988,68526.0,68514.0,0.014599]
[1771684567240,0.072988,68525.0,68514.0,0.014599]
[1771684567442,0.072988,68527.0,68515.0,0.014599]
[1771684567654,0.072988,68527.0,68500.0,0.46716]
[1771684567655,0.8244784,68526.0,68496.0,0.37613231]
[1771684567861,0.72930911,68554.0,68496.0,0.37613231]
[1771684567862,0.8244784,68524.0,68497.0,0.01476]
[1771684568045,0.8244784,68524.0,68498.0,0.014603]
[1771684568351,0.014601,68508.0,68497.0,0.029363]
[1771684568850,0.014601,68506.0,68497.0,0.029363]
[1771684569041,0.014601,68506.0,68500.0,0.00088]
[1771684569240,0.0146,68510.0,68501.0,0.014602]
[1771684569641,0.014601,68508.0,68499.0,0.014603]
[1771684570248,0.0146,68513.0,68500.0,0.014602]
[1771684570249,0.014601,68509.0,68500.0,0.014602]
[1771684570951,0.014601,68508.0,68498.0,0.014603]
[1771684571146,0.014601,68507.0,68498.0,0.014603]
[1771684571351,0.014601,68506.0,68498.0,0.014603]
[1771684571747,0.014601,68508.0,68498.0,0.014603]
[1771684571955,0.014601,68505.0,68499.0,0.01476]
[1771684572156,0.014601,68507.0,68499.0,0.01476]
[1771684572357,0.014601,68506.0,68500.0,0.01476]
[1771684572660,0.014601,68506.0,68501.0,0.01476]
[1771684573256,0.014601,68506.0,68502.0,0.01476]
[1771684573452,0.014602,68502.0,68493.0,0.014604]
[1771684573658,0.014602,68502.0,68494.0,0.014604]
[1771684573856,0.014602,68502.0,68495.0,0.01476]
[1771684574457,0.014602,68503.0,68495.0,0.029363]
[1771684574647,0.014602,68503.0,68496.0,0.01476]
[1771684575161,0.014601,68506.0,68497.0,0.01476]
[1771684575358,0.116791,68510.0,68501.0,0.014602]
[1771684575555,0.131392,68509.0,68502.0,0.01476]
[1771684575859,0.116791,68510.0,68502.0,0.01476]
[1771684576259,0.131392,68509.0,68502.0,0.01476]
[1771684576458,0.014601,68509.0,68502.0,0.01476]
[1771684576650,0.116791,68509.0,68502.0,0.01476]
[1771684577661,0.0146,68510.0,68502.0,0.01476]
[1771684577662,0.014599,68518.0,68506.0,0.014601]
[1771684577852,0.014599,68514.0,68507.0,0.01476]
[1771684578051,0.0146,68511.0,68508.0,0.00088]
[1771684578358,0.0146,68511.0,68507.0,0.01476]
[1771684578857,0.0146,68512.0,68507.0,0.01476]
[1771684579045,0.0146,68512.0,68502.0,0.014602]
[1771684579252,0.0146,68512.0,68503.0,0.01476]
[1771684579662,0.0146,68512.0,68504.0,0.01476]
[1771684580353,0.001,68511.0,68505.0,0.014601]
[1771684580555,0.014599,68515.0,68506.0,0.014601]
[1771684580756,0.014599,68516.0,68507.0,0.014601]
[1771684580958,0.014599,68515.0,68505.0,0.014601]
[1771684581159,0.0146,68512.0,68502.0,0.014602]
[1771684581353,0.0146,68514.0,68503.0,0.01476]
[1771684581354,0.0146,68511.0,68503.0,0.01476]
[1771684581552,0.0146,68511.0,68504.0,0.01476]
[1771684581954,0.0146,68512.0,68504.0,0.01476]
[1771684582155,0.0146,68513.0,68504.0,0.01476]
[1771684582361,0.0146,68513.0,68504.0,0.029362]
[1771684582663,0.0146,68512.0,68504.0,0.01476]
[1771684583862,0.0292,68514.0,68504.0,0.029361]
[1771684584163,0.0146,68513.0,68504.0,0.01476]
[1771684584456,0.014599,68515.0,68504.0,0.029362]
[1771684584657,0.76939452,68516.0,68504.0,0.029362]
[1771684584658,0.78399352,68516.0,68504.0,0.01476]
[1771684584957,0.014599,68516.0,68504.0,0.01476]
[1771684585157,0.0146,68514.0,68505.0,0.014601]
[1771684585954,0.014599,68515.0,68506.0,0.014601]
[1771684586151,0.014599,68516.0,68506.0,0.014601]
[1771684586463,0.014599,68517.0,68507.0,0.014601]
[1771684586663,0.029198,68517.0,68508.0,0.01476]
[1771684586849,0.014599,68517.0,68508.0,0.01476]
[1771684587058,0.014599,68517.0,68508.0,0.029361]
[1771684587664,0.014599,68517.0,68509.0,0.0146]
[1771684587960,0.014599,68519.0,68510.0,0.0146]
[1771684588258,0.014598,68522.0,68512.0,0.0146]
[1771684588452,0.014598,68520.0,68513.0,0.01476]
[1771684588853,0.014598,68521.0,68513.0,0.01476]
[1771684589054,0.014598,68522.0,68513.0,0.02936]
[1771684589960,0.014598,68521.0,68513.0,0.02936]
[1771684590161,0.014598,68521.0,68513.0,0.01476]
[1771684591662,0.029198,68516.0,68506.0,0.014601]
[1771684591870,0.014599,68515.0,68506.0,0.014601]
[1771684592066,0.014599,68516.0,68507.0,0.014601]
[1771684592261,0.014599,68516.0,68508.0,0.014601]
[1771684592463,0.78399352,68518.0,68510.0,0.0146]
[1771684592662,0.014598,68520.0,68510.0,0.0146]
[1771684592663,0.014599,68517.0,68510.0,0.0146]
[1771684592863,0.014599,68517.0,68509.0,0.0146]
[1771684593066,0.014599,68517.0,68511.0,0.00088]
[1771684593261,0.014599,68517.0,68509.0,0.0146]
[1771684593464,0.029198,68517.0,68509.0,0.0146]
[1771684593767,0.014599,68516.0,68509.0,0.0146]
[1771684594763,0.014598,68521.0,68509.0,0.0146]
[1771684594966,0.014599,68518.0,68512.0,0.0146]
[1771684595868,0.014598,68519.0,68512.0,0.0146]
[1771684596971,0.014598,68520.0,68512.0,0.0146]
[1771684598973,0.014598,68519.0,68511.0,0.0146]
[1771684600870,0.014598,68519.0,68512.0,0.0146]
[1771684603672,0.014598,68521.0,68512.0,0.0146]
[1771684604273,0.014599,68514.0,68505.0,0.014601]
[1771684604473,0.77452579,68516.0,68507.0,0.014601]
[1771684605680,0.014599,68515.0,68507.0,0.014601]
[1771684605979,0.77452579,68516.0,68508.0,0.014601]
[1771684606672,0.014599,68515.0,68508.0,0.014601]
[1771684607986,0.014598,68523.0,68505.0,0.014601]
[1771684607987,0.75992679,68528.0,68509.0,0.0146]
[1771684608176,0.014598,68520.0,68509.0,0.0146]
[1771684608373,0.014599,68517.0,68505.0,0.014601]
[1771684609478,0.014599,68517.0,68509.0,0.0146]
[1771684609879,0.014598,68519.0,68510.0,0.0146]
[1771684610078,0.014598,68520.0,68511.0,0.0146]
[1771684610482,0.014598,68520.0,68512.0,0.0146]
[1771684610686,0.014598,68520.0,68511.0,0.0146]
[1771684610888,0.014598,68521.0,68512.0,0.0146]
[1771684611094,0.75992679,68525.0,68510.0,0.17737856]
[1771684611390,0.75992679,68525.0,68514.0,0.014599]
[1771684611687,0.014597,68524.0,68513.0,0.0146]
[1771684611881,0.77452379,68525.0,68515.0,0.014599]
[1771684612077,0.75992679,68525.0,68517.0,0.014599]
[1771684612282,0.014596,68530.0,68517.0,0.014599]
[1771684612481,0.014596,68530.0,68513.0,0.0146]
[1771684612482,0.75992679,68541.0,68533.0,0.014595]
[1771684612680,0.75992679,68541.0,68535.0,0.014595]
[1771684612874,0.74344679,68541.0,68536.0,0.014595]
[1771684613079,0.014592,68549.0,68531.0,0.014596]
[1771684613273,0.014592,68549.0,68537.0,0.014595]
[1771684613480,0.014592,68549.0,68539.0,0.014594]
[1771684613674,0.75992679,68550.0,68536.0,0.014595]
[1771684613675,0.014593,68546.0,68536.0,0.014595]
[1771684613889,0.014593,68546.0,68534.0,0.02919]
[1771684613890,0.77451979,68544.0,68534.0,0.02919]
[1771684614182,0.77451979,68544.0,68534.0,0.014595]
[1771684614692,0.014593,68543.0,68534.0,0.014595]
[1771684615490,0.014596,68531.0,68523.0,0.46736]
[1771684615688,0.014596,68531.0,68523.0,0.481957]
[1771684616394,0.014597,68527.0,68520.0,0.014598]
[1771684616695,0.014597,68526.0,68519.0,0.014598]
[1771684616998,0.75992679,68529.0,68517.0,0.014599]
[1771684617187,0.75992679,68529.0,68514.0,0.014599]
[1771684617188,0.014598,68523.0,68514.0,0.014599]
[1771684617388,0.014597,68527.0,68520.0,0.014598]
[1771684617590,0.014597,68527.0,68511.0,0.0146]
[1771684617896,0.014597,68525.0,68518.0,0.014598]
[1771684618087,0.014597,68525.0,68519.0,0.014598]
[1771684618395,0.014598,68521.0,68515.0,0.014599]
[1771684618898,0.014598,68521.0,68516.0,0.014599]
[1771684619288,0.014598,68523.0,68516.0,0.014599]
[1771684619493,0.014597,68527.0,68519.0,0.014598]
[1771684620097,0.014595,68534.0,68528.0,0.014596]
[1771684620796,0.014595,68535.0,68528.0,0.014596]
[1771684621094,0.014595,68533.0,68526.0,0.014597]
[1771684621498,0.014595,68535.0,68528.0,0.014596]
[1771684621697,0.014595,68537.0,68529.0,0.014596]
[1771684621999,0.014593,68542.0,68533.0,0.014595]
[1771684622190,0.014593,68543.0,68534.0,0.014595]
[1771684622390,0.014592,68547.0,68537.0,0.014594]
[1771684622391,0.014593,68546.0,68537.0,0.014594]
[1771684623292,0.014592,68547.0,68537.0,0.014594]
[1771684623591,0.75992679,68553.0,68532.0,0.014596]
[1771684623799,0.014593,68544.0,68533.0,0.014595]
[1771684623984,0.014593,68546.0,68536.0,0.014595]
[1771684624184,0.014593,68546.0,68535.0,0.014595]
[1771684624698,0.014592,68550.0,68535.0,0.014595]
[1771684624893,0.014592,68550.0,68536.0,0.014595]
[1771684625402,0.014592,68548.0,68536.0,0.014595]
[1771684625590,0.014592,68548.0,68537.0,0.014594]
[1771684625790,0.014593,68547.0,68535.0,0.014595]
[1771684626100,0.014593,68546.0,68535.0,0.014595]
[1771684626296,0.014593,68545.0,68534.0,0.014595]
[1771684626990,0.75992679,68546.0,68521.0,0.014598]
[1771684627304,0.77452079,68542.0,68527.0,0.014597]
[1771684627501,0.014594,68539.0,68527.0,0.014597]
[1771684627690,0.014594,68539.0,68528.0,0.014596]
[1771684628197,0.014594,68538.0,68528.0,0.014596]
[1771684630002,0.014594,68541.0,68529.0,0.014596]
[1771684630208,0.014594,68539.0,68530.0,0.014596]
[1771684631202,0.014594,68538.0,68528.0,0.014596]
[1771684631403,0.014596,68532.0,68523.0,0.014597]
[1771684631991,0.014595,68533.0,68524.0,0.014597]
[1771684632398,0.014595,68535.0,68526.0,0.014597]
[1771684632702,0.014595,68534.0,68526.0,0.014597]
[1771684633004,0.014595,68533.0,68525.0,0.014597]
[1771684633203,0.014596,68531.0,68521.0,0.014598]
[1771684633499,0.014596,68529.0,68521.0,0.014598]
[1771684633803,0.014596,68532.0,68524.0,0.014597]
[1771684634202,0.014596,68531.0,68523.0,0.014597]
[1771684634401,0.014596,68531.0,68521.0,0.014598]
[1771684634617,0.014596,68532.0,68523.0,0.029194]
[1771684634797,0.014595,68533.0,68523.0,0.029194]
[1771684634798,0.014596,68531.0,68523.0,0.014597]
[1771684635300,0.014596,68530.0,68523.0,0.014597]
[1771684637099,0.014596,68531.0,68524.0,0.014597]
[1771684637303,0.014596,68531.0,68523.0,0.014597]
[1771684637503,0.014595,68537.0,68530.0,0.014596]
[1771684637707,0.014595,68536.0,68528.0,0.014596]
[1771684638010,0.014595,68537.0,68529.0,0.014596]
[1771684639007,0.014594,68538.0,68529.0,0.014596]
[1771684640102,0.014594,68539.0,68529.0,0.014596]
[1771684642403,0.07142258,68540.0,68529.0,0.014596]
[1771684643009,0.014596,68532.0,68520.0,0.014598]
[1771684643213,0.8297732,68534.0,68523.0,0.014597]
[1771684643608,0.014595,68533.0,68523.0,0.014597]
[1771684644215,0.014596,68532.0,68523.0,0.014597]
[1771684644408,0.014596,68532.0,68522.0,0.014598]
[1771684645017,0.014596,68532.0,68523.0,0.014597]
[1771684646114,0.014596,68531.0,68523.0,0.014597]